bitfinex-derivatives/quotes_SOLF0:USTF0_20220108
["timestamp","ask_amount","ask_price","bid_price","bid_amount"]
[1641641944604,9.49996898,145.46,145.41,38.69053507]
[1641641944804,9.49996898,145.46,145.42,38.69053507]
[1641641945004,4.0,145.44,145.42,38.69053507]
[1641641945204,10.60107196,145.44,145.42,30.18867412]
[1641641945605,10.60107196,145.44,145.34,81.87591144]
[1641641945805,34.26586196,145.44,145.36,27.66479]
[1641641947208,27.66479,145.44,145.36,27.66479]
[1641641948406,27.66479,145.44,145.36,35.54979]
[1641641950010,4.0,145.46,145.36,93.63633548]
[1641641950412,4.0,145.46,145.36,97.63633548]
[1641641950813,4.0,145.46,145.36,93.63633548]
[1641641953016,4.0,145.46,145.36,35.54979]
[1641641953414,4.0,145.45,145.36,35.54979]
[1641641953614,8.59728868,145.46,145.36,35.54979]
[1641641953814,4.0,145.45,145.36,35.54979]
[1641641954015,1.719,145.44,145.36,35.54979]
[1641641954817,5.719,145.44,145.36,7.885]
[1641641955022,10.60101121,145.44,145.35,13.27521144]
[1641641955219,5.719,145.43,145.35,13.27521144]
[1641641955418,5.50164728,145.42,145.35,13.27521144]
[1641641956019,27.66479,145.41,145.35,13.27521144]
[1641641956220,5.50229282,145.4,145.35,13.27521144]
[1641641956419,5.50301798,145.38,145.35,13.27521144]
[1641641956619,4.0,145.36,145.35,13.27521144]
[1641641956820,4.0,145.36,145.33,58.08654548]
[1641641957021,4.0,145.34,145.33,17.88654548]
[1641641957223,13.719,145.34,145.33,8.88654548]
[1641641957422,13.719,145.34,145.29,113.41112621]
[1641641957626,11.999,145.34,145.29,99.41112621]
[1641641957922,27.66479,145.3,145.27,65.5978]
[1641641958123,36.15979,145.3,145.21,34.54710246]
[1641641958323,36.15979,145.3,145.22,127.3466]
[1641641959323,8.495,145.3,145.22,127.3466]
[1641641959522,27.66479,145.32,145.22,127.3466]
[1641641959822,27.66479,145.32,145.22,131.3466]
[1641641960022,27.66479,145.32,145.24,27.66479]
[1641641960224,31.66479,145.32,145.24,27.66479]
[1641641960624,27.66479,145.32,145.24,27.66479]
[1641641962022,27.66479,145.32,145.22,127.3466]
[1641641962224,36.34179,145.32,145.22,127.3466]
[1641641964227,27.66479,145.29,145.22,127.3466]
[1641641964429,27.66479,145.29,145.22,62.4738]
[1641641966530,36.34179,145.32,145.22,62.4738]
[1641641966730,46.54179,145.32,145.24,4.0]
[1641641968431,46.54179,145.32,145.24,31.66479]
[1641641969332,46.54179,145.32,145.24,27.66479]
[1641641969534,5.50606195,145.3,145.24,27.66479]
[1641641969736,7.22606195,145.3,145.22,62.4738]
[1641641969935,5.50606195,145.3,145.22,62.4738]
[1641641970735,5.50606195,145.3,145.25,4.0]
[1641641971133,37.86479,145.32,145.24,4.0]
[1641641971333,37.86479,145.32,145.24,12.027]
[1641641971535,37.86479,145.32,145.24,8.027]
[1641641972333,37.86479,145.32,145.24,35.69179]
[1641641973236,6.60585692,145.33,145.27,4.0]
[1641641973435,39.78479,145.36,145.27,12.036]
[1641641973634,38.06479,145.36,145.28,67.8256]
[1641641974235,10.4,145.36,145.28,67.8256]
[1641641974435,10.4,145.36,145.28,95.49039]
[1641641975837,1.72,145.35,145.28,95.49039]
[1641641976135,9.585,145.35,145.28,95.49039]
[1641641976338,27.66479,145.34,145.28,95.49039]
[1641641979041,9.585,145.35,145.28,99.49039]
[1641641979241,1.72,145.35,145.28,99.49039]
[1641641979440,1.72,145.35,145.28,95.49039]
[1641641980341,10.4,145.36,145.28,95.49039]
[1641641980542,38.06479,145.36,145.28,95.49039]
[1641641984046,42.06479,145.36,145.28,95.49039]
[1641641984247,38.06479,145.36,145.28,95.49039]
[1641641984447,38.06479,145.36,145.32,14.59175921]
[1641641984647,39.78479,145.36,145.32,14.59175921]
[1641641986047,39.78479,145.36,145.31,14.59175921]
[1641641986848,5.50415098,145.35,145.31,14.59175921]
[1641641987049,5.50415098,145.35,145.32,14.59175921]
[1641641988857,5.50415098,145.35,145.3,14.59175921]
[1641641989856,65.72958,145.36,145.3,14.59175921]
[1641641990955,65.72958,145.36,145.31,14.59175921]
[1641641993360,4.0,145.33,145.31,14.59175921]
[1641641993559,9.50453417,145.34,145.31,14.59175921]
[1641641993762,6.936,145.33,145.31,14.59175921]
[1641641994160,6.936,145.33,145.3,14.59175921]
[1641641995761,6.936,145.33,145.31,14.59175921]
[1641641996865,6.936,145.33,145.3,14.59175921]
[1641641997064,5.50453417,145.34,145.3,14.59175921]
[1641641997663,5.50453417,145.34,145.31,14.59175921]
[1641642001069,65.72958,145.36,145.31,14.59175921]
[1641642002972,10.4,145.36,145.33,14.59175921]
[1641642003575,6.60245674,145.41,145.33,14.59175921]
[1641642003774,42.18093171,145.42,145.34,62.989]
[1641642003971,27.66479,145.42,145.34,110.48381165]
[1641642004172,1.719,145.47,145.41,4.0]
[1641642004372,8.72981165,145.5,145.46,4.0]
[1641642004673,8.72981165,145.5,145.46,11.203]
[1641642005075,58.06392796,145.54,145.49,59.32958]
[1641642005273,17.11282691,145.59,145.5,4.0]
[1641642005674,13.11282691,145.59,145.5,4.0]
[1641642006275,17.11282691,145.59,145.52,58.06392796]
[1641642006475,5.39868067,145.59,145.52,58.06392796]
[1641642006676,4.0,145.59,145.52,65.19792796]
[1641642006878,38.02479,145.6,145.59,19.04789337]
[1641642007076,38.02479,145.6,145.53,58.06392796]
[1641642007279,38.02479,145.6,145.54,31.66479]
[1641642007476,30.21666819,145.6,145.54,27.66479]
[1641642007677,30.21666819,145.6,145.56,4.0]
[1641642008680,30.21666819,145.6,145.57,1.40873907]
[1641642009483,30.21666819,145.6,145.58,4.0]
[1641642009682,30.21666819,145.6,145.57,5.40873907]
[1641642010484,30.21666819,145.6,145.57,1.40873907]
[1641642010687,30.21666819,145.6,145.58,1.40873907]
[1641642010885,30.21666819,145.6,145.58,6.76373907]
[1641642011285,30.21666819,145.6,145.58,10.76373907]
[1641642011586,27.66479,145.6,145.59,4.0]
[1641642011785,6.59086199,145.66,145.59,4.0]
[1641642011986,12.08341331,145.66,145.58,5.355]
[1641642012185,22.54341331,145.66,145.59,4.0]
[1641642012391,22.54341331,145.66,145.58,5.355]
[1641642012589,22.54341331,145.66,145.59,1.40873907]
[1641642012987,22.54341331,145.66,145.59,5.40873907]
[1641642013188,22.54341331,145.66,145.61,27.66479]
[1641642013488,22.54341331,145.66,145.61,35.80679]
[1641642014087,22.54341331,145.66,145.63,4.0]
[1641642014692,22.54341331,145.66,145.64,4.79135478]
[1641642015591,22.54341331,145.66,145.64,6.20009385]
[1641642016093,22.54341331,145.66,145.64,10.20009385]
[1641642016393,22.54341331,145.66,145.64,6.20009385]
[1641642016594,22.54341331,145.66,145.63,8.79135478]
[1641642017595,22.54341331,145.66,145.63,4.79135478]
[1641642017794,15.95255132,145.66,145.63,4.79135478]
[1641642017995,15.95255132,145.66,145.63,8.79135478]
[1641642018195,21.44508446,145.66,145.63,8.79135478]
[1641642019098,27.66479,145.69,145.66,2.94320436]
[1641642019698,37.90479,145.69,145.66,2.94320436]
[1641642019901,37.90479,145.69,145.66,11.43320436]
[1641642020101,10.24,145.69,145.66,11.43320436]
[1641642021503,10.24,145.69,145.66,15.43320436]
[1641642021801,10.24,145.69,145.66,43.09799436]
[1641642022100,65.31165809,145.74,145.66,39.09799436]
[1641642022101,44.71009276,145.74,145.66,39.09799436]
[1641642022502,44.71009276,145.74,145.66,43.09799436]
[1641642023001,44.71009276,145.74,145.67,8.41966568]
[1641642024303,1.715,145.73,145.67,8.41966568]
[1641642024502,8.30263543,145.73,145.67,8.41966568]
[1641642024702,5.4911291,145.69,145.67,4.79135478]
[1641642024902,5.4911291,145.69,145.66,7.73455914]
[1641642026704,21.45256034,145.71,145.67,8.42368086]
[1641642028105,8.30263543,145.73,145.67,8.42368086]
[1641642028507,6.58937428,145.69,145.67,8.42368086]
[1641642029109,6.58937428,145.69,145.68,4.79135478]
[1641642030711,6.58937428,145.69,145.67,3.63232608]
[1641642031708,6.484,145.7,145.67,3.63232608]
[1641642032008,8.2,145.7,145.67,3.63232608]
[1641642033210,6.484,145.7,145.69,4.81211064]
[1641642033909,55.32958,145.71,145.67,3.63232608]
[1641642034110,55.32958,145.71,145.67,41.82489748]
[1641642035210,27.66479,145.71,145.67,41.82489748]
[1641642035411,27.66479,145.71,145.68,4.0]
[1641642035613,27.66479,145.71,145.68,42.1925714]
[1641642036411,27.66479,145.71,145.69,3.63232608]
[1641642037214,27.66479,145.71,145.69,38.1925714]
[1641642037913,27.66479,145.71,145.69,41.82489748]
[1641642038713,27.66479,145.71,145.69,45.82489748]
[1641642038914,16.76730882,145.74,145.7,38.1925714]
[1641642040015,16.76730882,145.74,145.72,38.1925714]
[1641642040621,16.76730882,145.74,145.72,30.1925714]
[1641642040916,16.76730882,145.74,145.73,3.63232608]
[1641642041716,16.76730882,145.74,145.68,58.06392796]
[1641642041917,16.76730882,145.74,145.68,51.32392796]
[1641642042317,16.76730882,145.74,145.68,55.32392796]
[1641642042517,16.76730882,145.74,145.68,51.32392796]
[1641642042719,16.76730882,145.74,145.7,4.0]
[1641642043220,16.76730882,145.74,145.67,3.63232608]
[1641642043419,6.86671702,145.71,145.67,3.63232608]
[1641642043618,16.76730882,145.74,145.7,4.0]
[1641642043819,23.63237593,145.74,145.66,2.94320436]
[1641642044321,23.63237593,145.74,145.71,4.0]
[1641642045423,6.58778036,145.73,145.71,4.0]
[1641642046730,18.51827389,145.74,145.71,4.0]
[1641642046928,11.65320678,145.74,145.71,4.0]
[1641642047127,5.06589796,145.74,145.72,4.0]
[1641642048329,36.24273695,145.79,145.72,4.0]
[1641642048730,46.44273695,145.79,145.72,4.0]
[1641642049431,46.44273695,145.79,145.69,84.54257611]
[1641642049632,44.72773695,145.79,145.69,84.54257611]
[1641642050032,44.72773695,145.79,145.78,14.57820288]
[1641642050835,37.86479,145.79,145.78,14.57820288]
[1641642051136,37.86479,145.79,145.75,8.408]
[1641642051434,44.72773695,145.79,145.75,8.408]
[1641642052134,51.31278106,145.79,145.75,8.408]
[1641642052335,5.48853907,145.76,145.73,4.0]
[1641642052539,5.48965933,145.73,145.71,58.27077256]
[1641642052739,5.48965933,145.73,145.71,62.27077256]
[1641642053541,5.48965933,145.73,145.71,4.0]
[1641642054040,5.48965933,145.73,145.72,4.0]
[1641642054442,6.58636473,145.76,145.72,4.0]
[1641642054842,6.58636473,145.76,145.7,76.38844867]
[1641642056043,6.58636473,145.76,145.73,4.0]
[1641642056242,6.58636473,145.76,145.73,9.936]
[1641642058244,6.58636473,145.76,145.73,4.0]
[1641642058843,6.58636473,145.76,145.74,3.41736467]
[1641642060143,2.07187646,145.74,145.72,4.0]
[1641642060543,41.08815473,145.76,145.72,4.0]
[1641642061443,41.08815473,145.76,145.75,14.56066919]
[1641642061644,34.25115473,145.76,145.75,14.56066919]
[1641642062246,34.25115473,145.76,145.73,4.0]
[1641642062445,34.25115473,145.76,145.73,37.82845117]
[1641642063749,34.25115473,145.76,145.7,18.11767611]
[1641642065149,34.25115473,145.76,145.7,22.11767611]
[1641642065749,39.73977693,145.76,145.7,22.11767611]
[1641642066748,39.73977693,145.76,145.72,58.27077256]
[1641642067449,39.73977693,145.76,145.7,22.11767611]
[1641642067450,39.73977693,145.76,145.71,58.27077256]
[1641642067848,39.73977693,145.76,145.71,62.27077256]
[1641642068149,39.73977693,145.76,145.72,58.27077256]
[1641642068752,12.07498693,145.76,145.72,69.62177256]
[1641642068951,37.86479,145.79,145.72,69.62177256]
[1641642069351,10.2,145.79,145.72,69.62177256]
[1641642070056,10.2,145.79,145.75,58.27077256]
[1641642070253,10.2,145.79,145.75,63.94277256]
[1641642070456,1.715,145.84,145.75,63.94277256]
[1641642070654,6.86012211,145.85,145.75,63.94277256]
[1641642070655,34.52491211,145.85,145.76,27.66479]
[1641642073560,34.52491211,145.85,145.76,31.66479]
[1641642073759,34.52491211,145.85,145.76,96.98329]
[1641642074159,5.4854666,145.84,145.76,96.98329]
[1641642074360,5.4854666,145.84,145.77,4.0]
[1641642074560,5.4854666,145.84,145.79,4.0]
[1641642074762,5.4854666,145.84,145.79,11.326]
[1641642076263,45.02373578,145.87,145.79,11.326]
[1641642076562,45.02373578,145.87,145.79,38.99079]
[1641642076763,38.16479,145.87,145.81,4.0]
[1641642076964,38.16479,145.87,145.83,4.0]
[1641642077164,10.5,145.87,145.83,8.136]
[1641642077363,10.5,145.9,145.83,8.136]
[1641642078564,10.5,145.9,145.84,27.66479]
[1641642080265,10.5,145.9,145.84,45.78246611]
[1641642080465,10.5,145.9,145.84,49.78246611]
[1641642080865,14.5,145.9,145.84,18.11767611]
[1641642081068,15.98352571,145.9,145.84,18.11767611]
[1641642081267,15.98352571,145.9,145.81,63.2347]
[1641642081469,25.63652571,145.9,145.81,63.2347]
[1641642081667,21.63652571,145.9,145.81,63.2347]
[1641642081867,25.63652571,145.9,145.81,63.2347]
[1641642082067,0.65743151,145.88,145.82,18.11767611]
[1641642082467,10.5,145.9,145.82,18.11767611]
[1641642083170,10.5,145.9,145.82,56.73274551]
[1641642083970,10.5,145.9,145.81,105.8497694]
[1641642084170,10.5,145.9,145.83,4.0]
[1641642084370,10.5,145.9,145.81,111.5387694]
[1641642084669,10.5,145.9,145.82,4.0]
[1641642084869,10.5,145.9,145.82,59.73910615]
[1641642085071,10.5,145.9,145.84,4.0]
[1641642085269,10.5,145.9,145.84,9.933]
[1641642086770,27.66479,145.93,145.86,42.6150694]
[1641642087371,38.02479,145.93,145.86,38.6150694]
[1641642087572,38.02479,145.93,145.86,55.73910615]
[1641642087974,42.02479,145.93,145.86,55.73910615]
[1641642088174,5.48292231,145.91,145.86,55.73910615]
[1641642088372,5.48292231,145.91,145.86,38.6150694]
[1641642088573,5.48292231,145.91,145.85,66.7745]
[1641642089776,38.02479,145.93,145.85,66.7745]
[1641642090576,38.02479,145.93,145.85,70.7745]
[1641642090777,38.02479,145.93,145.85,109.3895694]
[1641642091578,38.02479,145.93,145.85,70.7745]
[1641642091777,38.02479,145.93,145.85,66.7745]
[1641642091978,43.50693659,145.93,145.85,66.7745]
[1641642092381,43.50693659,145.93,145.85,105.3895694]
[1641642092878,43.50693659,145.93,145.87,4.0]
[1641642093079,38.02479,145.93,145.87,4.0]
[1641642093282,38.02479,145.93,145.86,11.176]
[1641642093481,38.02479,145.93,145.88,14.47354552]
[1641642094281,38.02479,145.93,145.86,7.176]
[1641642094282,10.36,145.93,145.89,14.47354552]
[1641642097284,10.36,145.93,145.9,14.47354552]
[1641642097985,10.36,145.93,145.91,14.47354552]
[1641642099584,10.36,145.93,145.88,66.2798594]
[1641642099884,10.36,145.93,145.9,38.6150694]
[1641642100084,10.36,145.93,145.9,46.3790694]
[1641642100682,10.36,145.93,145.91,3.39612889]
[1641642101885,10.36,145.93,145.91,42.01119829]
[1641642102485,10.36,145.93,145.92,38.6150694]
[1641642103288,10.36,145.93,145.92,8.122]
[1641642104291,10.36,145.93,145.92,50.13319829]
[1641642105091,10.36,145.93,145.92,11.51812889]
[1641642107096,5.48090811,145.97,145.92,11.51812889]
[1641642107695,5.48090811,145.97,145.94,38.77440118]
[1641642108095,7.95185312,145.98,145.94,38.77440118]
[1641642108496,7.95185312,145.98,145.95,38.77440118]
[1641642109296,7.95185312,145.98,145.97,14.5422851]
[1641642110900,9.66385312,145.98,145.97,14.5422851]
[1641642111503,7.95185312,145.98,145.97,14.5422851]
[1641642112802,7.95185312,145.98,145.96,14.5422851]
[1641642113403,5.48063005,145.97,145.96,14.5422851]
[1641642113804,5.48063005,145.97,145.93,38.77440118]
[1641642116707,9.48063005,145.97,145.93,38.77440118]
[1641642116905,5.48172336,145.94,145.93,38.77440118]
[1641642117305,6.57682354,145.97,145.93,38.77440118]
[1641642117507,9.48173114,145.94,145.93,28.37440118]
[1641642117705,9.48173114,145.94,145.93,3.39612889]
[1641642117905,2.08706649,145.91,145.9,6.89790589]
[1641642118106,7.588,145.91,145.9,2.89790589]
[1641642118307,7.588,145.91,145.89,78.76125247]
[1641642118507,7.588,145.91,145.89,45.70867845]
[1641642118907,7.588,145.91,145.85,96.77691306]
[1641642118908,35.25279,145.91,145.83,45.70867845]
[1641642119807,35.25279,145.91,145.81,110.52330158]
[1641642120708,35.25279,145.91,145.81,114.52330158]
[1641642121111,35.25279,145.91,145.81,93.95529]
[1641642121312,35.25279,145.91,145.81,89.95529]
[1641642122112,35.25279,145.91,145.81,93.95529]
[1641642122916,35.25279,145.91,145.82,4.0]
[1641642123116,35.25279,145.91,145.82,10.024]
[1641642123315,7.588,145.91,145.83,4.0]
[1641642123516,5.48266246,145.92,145.82,10.024]
[1641642123716,5.48266246,145.92,145.83,4.0]
[1641642124216,5.4815164,145.95,145.83,10.85330501]
[1641642124916,33.1463064,145.95,145.86,27.66479]
[1641642125118,33.1463064,145.95,145.87,63.441]
[1641642125618,5.48231171,145.93,145.87,63.441]
[1641642128823,5.48302036,145.91,145.87,63.441]
[1641642129022,5.48302036,145.91,145.9,14.55788028]
[1641642130024,5.48302036,145.91,145.87,63.441]
[1641642130225,5.48302036,145.91,145.86,35.11679]
[1641642131928,6.5782352,145.94,145.86,39.11679]
[1641642132930,6.5782352,145.94,145.93,14.55677795]
[1641642133331,27.66479,145.95,145.93,14.55677795]
[1641642134334,5.48099205,145.96,145.93,14.55677795]
[1641642134538,5.48099205,145.96,145.94,14.55677795]
[1641642134736,19.47556112,145.95,145.94,14.55677795]
[1641642135435,19.47556112,145.96,145.93,21.63177795]
[1641642136136,19.47556112,145.96,145.94,14.55677795]
[1641642138736,19.47556112,145.96,145.95,14.55677795]
[1641642139636,27.66479,145.97,145.94,14.55677795]
[1641642140440,27.66479,145.97,145.96,14.55677795]
[1641642140838,47.13592991,145.97,145.96,14.55677795]
[1641642141239,47.13592991,145.97,145.95,14.55677795]
[1641642141440,19.47113991,145.97,145.95,14.55677795]
[1641642143244,13.43238217,145.98,145.95,14.55677795]
[1641642143446,7.95185312,145.98,145.95,22.67877795]
[1641642144047,7.95185312,145.98,145.95,8.122]
[1641642146051,7.95185312,145.98,145.97,14.51822706]
[1641642147753,7.95185312,145.98,145.94,101.96835465]
[1641642148653,7.95185312,145.98,145.97,14.50671261]
[1641642149053,7.95185312,145.98,145.97,23.36871261]
[1641642151556,7.95185312,145.98,145.97,14.50671261]
[1641642152357,7.95185312,145.98,145.97,20.14171261]
[1641642152558,7.95185312,145.98,145.97,5.635]
[1641642152758,33.14330768,146.03,145.97,5.635]
[1641642153359,43.50330768,146.03,145.97,5.635]
[1641642153558,43.50330768,146.03,146.02,4.83876048]
[1641642154260,43.50330768,146.03,146.02,10.41476048]
[1641642155262,43.50330768,146.03,146.02,5.576]
[1641642155662,43.50330768,146.03,146.0,14.51628144]
[1641642156764,43.50330768,146.03,146.01,14.51628144]
[1641642157967,43.50330768,146.03,146.0,14.51628144]
[1641642159669,43.50330768,146.03,146.02,14.51628144]
[1641642160573,43.50330768,146.03,145.99,57.77399202]
[1641642160772,38.02479,146.03,146.0,41.73100654]
[1641642161874,38.02479,146.03,146.01,2.92855189]
[1641642162576,38.02479,146.03,146.02,14.51736248]
[1641642163577,6.57352334,146.05,146.02,7.901]
[1641642163777,90.23239,146.1,146.02,7.901]
[1641642163975,10.14,146.11,146.02,7.901]
[1641642164378,5.47574554,146.1,146.08,4.83752791]
[1641642164579,5.47574554,146.1,146.08,11.03852791]
[1641642164777,10.14,146.11,146.08,11.03852791]
[1641642165580,10.14,146.11,146.08,6.201]
[1641642165879,10.14,146.11,146.08,1.71258374]
[1641642166079,10.14,146.11,146.07,20.36692563]
[1641642167480,33.1387617,146.15,146.07,20.36692563]
[1641642167481,10.02,146.12,146.07,20.36692563]
[1641642167779,33.1387617,146.15,146.07,20.36692563]
[1641642167981,27.66479,146.15,146.07,24.36692563]
[1641642168181,37.96479,146.15,146.07,20.36692563]
[1641642168380,37.96479,146.15,146.07,24.36692563]
[1641642168583,37.96479,146.15,146.07,63.16938028]
[1641642168781,37.96479,146.15,146.07,59.16938028]
[1641642169985,37.96479,146.15,146.13,4.82622409]
[1641642170886,37.96479,146.15,146.07,59.16938028]
[1641642170887,37.96479,146.15,146.14,4.82622409]
[1641642171485,47.43892463,146.15,146.08,38.80245465]
[1641642171687,5.47527162,146.12,146.08,38.80245465]
[1641642171884,13.79927162,146.12,146.06,38.80245465]
[1641642172486,8.324,146.12,146.06,38.80245465]
[1641642172885,8.324,146.12,146.05,64.6203]
[1641642173086,65.62958,146.15,146.05,64.6203]
[1641642173686,65.62958,146.15,146.07,27.66479]
[1641642177391,65.62958,146.15,146.07,31.66479]
[1641642178391,65.62958,146.15,146.07,27.66479]
[1641642180493,5.47426102,146.14,146.07,27.66479]
[1641642181395,12.19426102,146.14,146.07,27.66479]
[1641642182495,5.47426102,146.14,146.07,27.66479]
[1641642183599,5.47426102,146.14,146.07,31.66479]
[1641642184200,5.47426102,146.14,146.07,27.66479]
[1641642185201,5.47426102,146.14,146.08,4.0]
[1641642186200,5.47426102,146.14,146.09,38.80245465]
[1641642187201,5.47426102,146.14,146.08,4.0]
[1641642188404,5.47426102,146.14,146.08,42.80245465]
[1641642189004,10.3,146.15,146.08,49.64403779]
[1641642189206,10.3,146.15,146.1,38.80245465]
[1641642190208,10.3,146.15,146.11,66.46724465]
[1641642191108,10.3,146.15,146.11,27.66479]
[1641642192108,10.3,146.15,146.11,66.46724465]
[1641642192309,10.3,146.15,146.11,94.13203465]
[1641642193009,5.47352921,146.16,146.12,54.74587678]
[1641642193210,15.51352921,146.16,146.12,54.74587678]
[1641642194212,15.51352921,146.16,146.13,38.80245465]
[1641642194512,15.51352921,146.16,146.14,27.66479]
[1641642194710,85.08720998,146.2,146.14,27.66479]
[1641642194910,18.13970998,146.2,146.14,27.66479]
[1641642196114,18.13970998,146.2,146.15,38.80245465]
[1641642197013,18.13970998,146.2,146.17,14.51758424]
[1641642197813,18.13970998,146.2,146.18,14.51758424]
[1641642198414,18.13970998,146.2,146.17,14.51758424]
[1641642199114,18.13970998,146.2,146.18,14.51758424]
[1641642200814,18.13970998,146.2,146.17,14.51758424]
[1641642201418,10.26,146.2,146.17,14.51758424]
[1641642201820,10.26,146.2,146.19,14.51758424]
[1641642203419,10.26,146.2,146.16,38.80245465]
[1641642203619,10.26,146.2,146.17,38.80245465]
[1641642203920,27.66479,146.21,146.17,38.80245465]
[1641642204423,27.66479,146.21,146.18,38.80245465]
[1641642204623,37.76479,146.21,146.18,38.80245465]
[1641642206026,5.47202177,146.2,146.18,38.80245465]
[1641642206325,11.65602177,146.2,146.19,2.92713661]
[1641642206725,2.5452963,146.19,146.17,38.80245465]
[1641642206928,2.5452963,146.19,146.17,38.04245465]
[1641642207226,6.184,146.2,146.16,38.04245465]
[1641642207926,10.184,146.2,146.16,38.04245465]
[1641642208226,6.184,146.2,146.16,38.04245465]
[1641642208725,6.184,146.2,146.14,43.60821213]
[1641642209126,4.0,146.19,146.14,15.94342213]
[1641642209425,12.75049342,146.2,146.14,15.94342213]
[1641642210227,16.75049342,146.2,146.14,15.94342213]
[1641642211327,16.75049342,146.2,146.11,78.74822213]
[1641642212229,16.75049342,146.2,146.12,15.94342213]
[1641642212427,5.47258972,146.19,146.12,15.94342213]
[1641642215032,9.47258972,146.19,146.12,15.94342213]
[1641642215232,5.47336556,146.17,146.12,15.94342213]
[1641642215431,13.27136556,146.17,146.12,15.94342213]
[1641642218038,5.47410816,146.15,146.12,15.94342213]
[1641642219237,5.47410816,146.15,146.09,124.17382111]
[1641642220142,5.47410816,146.15,146.1,15.94342213]
[1641642223847,4.0,146.14,146.1,15.94342213]
[1641642224247,5.47410816,146.15,146.1,15.94342213]
[1641642224747,5.47410816,146.15,146.1,74.17494324]
[1641642228251,5.47410816,146.15,146.14,38.73831374]
[1641642228850,5.47410816,146.15,146.14,37.99831374]
[1641642229050,5.47410816,146.15,146.14,22.52400781]
[1641642229250,5.47410816,146.15,146.1,74.17494324]
[1641642230153,5.47410816,146.15,146.1,15.94342213]
[1641642234557,5.47424121,146.14,146.1,15.94342213]
[1641642234758,5.47424121,146.14,146.1,74.17494324]
[1641642237363,10.2,146.17,146.11,58.23152111]
[1641642237561,5.47354153,146.16,146.11,58.23152111]
[1641642238862,5.47429147,146.14,146.11,58.23152111]
[1641642239063,5.47429147,146.14,146.12,58.23152111]
[1641642239465,9.47429147,146.14,146.12,58.23152111]
[1641642240164,9.47429147,146.14,146.11,58.23152111]
[1641642240564,5.47471347,146.13,146.11,57.25152111]
[1641642241165,5.47471347,146.13,146.1,15.94342213]
[1641642242165,5.47543189,146.11,146.1,5.50342213]
[1641642242365,11.12643189,146.11,146.08,20.89581182]
[1641642242567,9.47616575,146.09,146.08,1.97923395]
[1641642242765,3.49764245,146.07,146.05,96.77691306]
[1641642242965,10.42564245,146.07,146.05,96.77691306]
[1641642243268,6.928,146.07,146.02,162.00021306]
[1641642243667,4.0,146.05,146.02,96.77691306]
[1641642244267,4.0,146.05,146.02,87.77691306]
[1641642244467,6.57303946,146.06,146.02,87.77691306]
[1641642244667,6.57303946,146.06,146.02,83.79691306]
[1641642244867,6.57303946,146.06,145.99,90.36269]
[1641642244868,6.57303946,146.06,145.99,87.36269]
[1641642245066,6.57303946,146.06,145.99,62.6979]
[1641642245567,27.66479,146.05,145.99,62.6979]
[1641642247167,6.928,146.07,145.99,62.6979]
[1641642247369,31.66479,146.08,145.99,62.6979]
[1641642247567,31.66479,146.08,146.0,2.61217938]
[1641642247769,27.66479,146.08,146.0,2.61217938]
[1641642248370,33.14141169,146.08,146.02,4.0]
[1641642248568,5.47662169,146.08,146.03,4.0]
[1641642248769,35.54927985,146.11,146.03,4.0]
[1641642248970,7.88448985,146.11,146.05,4.0]
[1641642249172,10.48,146.13,146.05,4.0]
[1641642249470,10.48,146.13,146.04,6.61217938]
[1641642249670,10.48,146.13,146.06,31.66479]
[1641642249870,10.48,146.13,146.06,34.27696938]
[1641642250071,10.48,146.13,146.11,14.50214613]
[1641642250872,10.48,146.13,146.12,14.50214613]
[1641642253079,10.48,146.13,146.12,12.52214613]
[1641642254280,10.48,146.13,146.11,2.61217938]
[1641642255179,10.48,146.13,146.12,2.61217938]
[1641642257480,10.48,146.13,146.12,0.01217938]
[1641642257881,19.95485608,146.13,146.12,0.01217938]
[1641642258381,43.61964608,146.13,146.08,38.67238968]
[1641642258581,50.40664608,146.13,146.08,38.67238968]
[1641642259185,50.40664608,146.13,146.07,52.69718737]
[1641642260584,50.40664608,146.13,146.08,38.67238968]
[1641642263490,50.40664608,146.13,146.08,36.67238968]
[1641642266790,5.47512338,146.12,146.08,36.67238968]
[1641642268889,5.47563308,146.11,146.08,36.67238968]